bitfinex-derivatives/quotes_BTCF0:USTF0_20250106
["timestamp","ask_amount","ask_price","bid_price","bid_amount"]
[1736153763811,0.23033428,99258.0,99257.0,0.050391]
[1736153764501,0.23233428,99258.0,99257.0,0.050391]
[1736153765613,0.00351162,99258.0,99257.0,0.050391]
[1736153768406,0.002,99258.0,99257.0,0.050391]
[1736153768609,0.08972851,99272.0,99271.0,0.050384]
[1736153770209,0.36164,99277.0,99271.0,0.051384]
[1736153770411,0.3608,99277.0,99276.0,0.050382]
[1736153772110,0.3608,99277.0,99276.0,0.051382]
[1736153772504,0.003,99277.0,99276.0,0.051382]
[1736153778811,0.003,99277.0,99276.0,0.412182]
[1736153782914,0.003,99277.0,99276.0,0.051382]
[1736153789420,0.003,99277.0,99276.0,0.050382]
[1736153790119,0.002,99277.0,99276.0,0.050382]
[1736153794227,0.052381,99277.0,99276.0,0.050382]
[1736153794816,0.002,99277.0,99276.0,0.050382]
[1736153795422,0.05099969,99277.0,99276.0,0.050382]
[1736153795812,0.10138069,99277.0,99276.0,0.050382]
[1736153796709,0.050386,99273.0,99272.0,0.050384]
[1736153796911,0.050386,99273.0,99266.0,0.18127079]
[1736153797214,0.411186,99267.0,99266.0,0.18127079]
[1736153797621,0.05039,99260.0,99259.0,0.05039]
[1736153797822,0.050392,99255.0,99254.0,0.18127079]
[1736153798124,0.411192,99255.0,99254.0,0.23166379]
[1736153798308,0.411192,99255.0,99254.0,0.18127079]
[1736153799012,0.46019169,99255.0,99254.0,0.002]
[1736153800423,0.46019169,99255.0,99254.0,0.004]
[1736153800717,0.59775936,99255.0,99254.0,0.0022104]
[1736153800924,0.59775936,99255.0,99229.0,0.49664]
[1736153801123,0.59775936,99255.0,99239.0,0.0504]
[1736153801124,0.050401,99240.0,99239.0,0.0504]
[1736153801617,0.18740736,99255.0,99250.0,0.050393]
[1736153801916,0.18656736,99255.0,99254.0,0.050393]
[1736153802717,0.06046989,99260.0,99259.0,0.05039]
[1736153805417,0.050394,99255.0,99254.0,0.050393]
[1736153806627,0.1400672,99255.0,99254.0,0.050393]
[1736153807324,0.1400652,99255.0,99254.0,0.001]
[1736153807826,0.1400652,99255.0,99254.0,0.003]
[1736153808217,0.1400652,99255.0,99254.0,0.053393]
[1736153808434,0.1400652,99255.0,99254.0,0.003]
[1736153809123,0.050392,99255.0,99254.0,0.003]
[1736153816433,0.19996916,99255.0,99254.0,0.003]
[1736153817719,0.050392,99255.0,99254.0,0.003]
[1736153819924,0.41,99255.0,99228.0,0.0696]
[1736153820128,0.050404,99232.0,99229.0,0.0705]
[1736153820333,0.050404,99232.0,99230.0,0.050405]
[1736153820527,0.050405,99230.0,99229.0,0.0705]
[1736153821234,0.050405,99230.0,99229.0,0.120906]
[1736153825931,0.411205,99230.0,99229.0,0.120906]
[1736153826340,0.05041,99220.0,99219.0,0.05810379]
[1736153826634,0.05041,99220.0,99206.0,0.26629599]
[1736153826635,0.050417,99207.0,99206.0,0.26629599]
[1736153826929,0.050421,99199.0,99198.0,0.36265644]
[1736153827240,0.411221,99199.0,99198.0,0.36265644]
[1736153828331,0.46226457,99199.0,99185.0,0.117828]
[1736153828636,0.050427,99186.0,99185.0,0.117828]
[1736153830142,0.050427,99186.0,99185.0,0.118828]
[1736153831344,0.050427,99186.0,99185.0,0.119828]
[1736153831745,0.050427,99186.0,99181.0,0.03487338]
[1736153831931,0.050427,99186.0,99185.0,0.050427]
[1736153834332,0.050427,99186.0,99185.0,0.051427]
[1736153834729,0.050427,99186.0,99185.0,0.052427]
[1736153842736,0.050427,99186.0,99185.0,0.002]
[1736153844139,0.050427,99186.0,99185.0,0.052428]
[1736153846145,0.14981787,99186.0,99185.0,0.052428]
[1736153847441,0.14981787,99186.0,99185.0,0.002]
[1736153847953,0.06041798,99186.0,99185.0,0.002]
[1736153848946,0.05043,99182.0,99181.0,0.05043]
[1736153850753,0.050434,99176.0,99175.0,0.050431]
[1736153851654,0.05043,99181.0,99180.0,0.05043]
[1736153853463,0.05043,99181.0,99180.0,0.05243]
[1736153854467,0.05043,99181.0,99180.0,0.05543]
[1736153857270,0.27896817,99181.0,99180.0,0.05543]
[1736153858572,0.09947558,99181.0,99180.0,0.05543]
[1736153865270,0.27896817,99181.0,99180.0,0.05543]
[1736153869074,0.09947558,99181.0,99180.0,0.05543]
[1736153874385,0.04904558,99181.0,99180.0,0.05543]
[1736153876174,0.09947358,99185.0,99184.0,0.050429]
[1736153876374,0.03908741,99163.0,99150.0,0.00052]
[1736153876576,0.1675,99184.0,99131.0,0.42309918]
[1736153876577,0.050455,99132.0,99131.0,0.42309918]
[1736153876771,0.050457,99127.0,99126.0,0.0525776]
[1736153878289,0.050457,99127.0,99126.0,0.002]
[1736153878477,0.050457,99127.0,99126.0,0.003]
[1736153878881,0.06071783,99127.0,99126.0,0.003]
[1736153879276,0.74491526,99127.0,99126.0,0.003]
[1736153880181,0.41512423,99127.0,99126.0,0.003]
[1736153880389,0.41512423,99127.0,99106.0,0.03763324]
[1736153880591,0.3608,99107.0,99106.0,0.03763324]
[1736153881586,0.43442036,99107.0,99087.0,0.00052]
[1736153881793,0.09782858,99097.0,99089.0,0.050477]
[1736153881984,0.3608,99090.0,99089.0,0.050477]
[1736153882177,0.050478,99088.0,99077.0,0.01015658]
[1736153882380,0.050478,99088.0,99073.0,0.33566597]
[1736153882580,0.3608,99090.0,99073.0,0.33566597]
[1736153882581,0.050478,99087.0,99073.0,0.33566597]
[1736153882781,0.050478,99087.0,99073.0,0.34576977]
[1736153883090,0.30260748,99087.0,99073.0,0.34576977]
[1736153883591,0.30260748,99087.0,99074.0,0.0653]
[1736153883786,0.1485936,99078.0,99075.0,0.050484]
[1736153884082,0.1415936,99078.0,99077.0,0.050483]
[1736153884584,0.050486,99072.0,99066.0,0.050488]
[1736153884777,0.3608,99067.0,99066.0,0.050488]
[1736153885177,0.3608,99067.0,99066.0,0.06627128]
[1736153885991,0.43442036,99067.0,99066.0,0.06627128]
[1736153886595,0.07362036,99067.0,99066.0,0.06627128]
[1736153886991,0.07462036,99067.0,99066.0,0.07427128]
[1736153887183,0.07462036,99067.0,99066.0,0.004]
[1736153887791,0.07462036,99067.0,99066.0,0.054489]
[1736153888096,0.07462036,99067.0,99066.0,0.415289]
[1736153889393,0.001,99067.0,99066.0,0.415289]
[1736153890389,0.17850912,99077.0,99076.0,0.050483]
[1736153890991,0.17850912,99077.0,99076.0,0.411283]
[1736153891596,0.06906711,99077.0,99076.0,0.411283]
[1736153892295,0.07206711,99077.0,99076.0,0.42124043]
[1736153892491,0.003,99077.0,99076.0,0.42124043]
[1736153892694,0.003,99077.0,99068.0,0.09782858]
[1736153892997,0.003,99077.0,99076.0,0.050483]
[1736153893188,0.07206711,99077.0,99076.0,0.050483]
[1736153893790,0.07106711,99077.0,99076.0,0.050483]
[1736153896293,0.07106711,99077.0,99071.0,0.35584732]
[1736153896499,0.07106711,99077.0,99071.0,0.35532732]
[1736153896700,0.07106711,99077.0,99076.0,0.050483]
[1736153896999,0.07206711,99077.0,99076.0,0.050483]
[1736153897504,0.07206711,99077.0,99076.0,0.181183]
[1736153897704,0.3608,99088.0,99087.0,0.050478]
[1736153898392,0.42248155,99088.0,99087.0,0.050478]
[1736153899995,0.42248155,99088.0,99078.0,0.14831058]
[1736153899996,0.42248155,99088.0,99080.0,0.050481]
[1736153900200,0.42248155,99088.0,99087.0,0.050478]
[1736153900499,0.42248155,99088.0,99078.0,0.08381254]
[1736153900687,0.42248155,99088.0,99087.0,0.050478]
[1736153900891,0.42248155,99088.0,99087.0,0.053478]
[1736153901092,0.65955861,99088.0,99087.0,0.053478]
[1736153901293,0.65955861,99088.0,99087.0,0.055478]
[1736153901595,0.65955861,99088.0,99087.0,0.052478]
[1736153901790,0.42248155,99088.0,99087.0,0.052478]
[1736153903194,0.42248155,99088.0,99087.0,0.055478]
[1736153903595,0.42248155,99088.0,99087.0,0.050478]
[1736153903796,0.64978452,99088.0,99087.0,0.053478]
[1736153904088,0.64978452,99088.0,99087.0,0.051478]
[1736153904299,0.65278452,99088.0,99087.0,0.051478]
[1736153905103,0.65278452,99088.0,99087.0,0.050478]
[1736153905297,0.65378452,99088.0,99087.0,0.050478]
[1736153907008,0.91924429,99088.0,99087.0,0.050478]
[1736153908010,0.91824429,99088.0,99087.0,0.051478]
[1736153908205,0.92024429,99088.0,99087.0,0.051478]
[1736153909810,0.92124429,99088.0,99087.0,0.050478]
[1736153910412,0.92124429,99088.0,99087.0,0.594978]
[1736153912314,0.92124429,99088.0,99087.0,0.22118943]
[1736153912913,1.21802993,99088.0,99087.0,0.27166743]
[1736153913215,1.21802993,99088.0,99087.0,0.1617]
[1736153913408,1.21702993,99088.0,99087.0,0.1617]
[1736153913604,0.92024429,99088.0,99087.0,0.1617]
[1736153913810,0.91624429,99088.0,99087.0,0.1617]
[1736153914006,0.91624429,99088.0,99077.0,0.01596566]
[1736153914202,0.91624429,99088.0,99087.0,0.050478]
[1736153914503,1.27604429,99088.0,99087.0,0.051478]
[1736153916311,1.27604429,99088.0,99087.0,0.052478]
[1736153921219,1.27604429,99088.0,99073.0,0.0635]
[1736153921419,0.3608,99077.0,99073.0,0.0635]
[1736153922420,0.3608,99077.0,99073.0,0.0645]
[1736153922718,0.28898452,99076.0,99073.0,0.0645]
[1736153923019,0.28898452,99076.0,99075.0,0.050484]
[1736153923922,0.28998452,99076.0,99075.0,0.050484]
[1736153924410,0.28898452,99076.0,99075.0,0.050484]
[1736153924607,0.29098452,99076.0,99075.0,0.050484]
[1736153925005,0.06368155,99076.0,99075.0,0.050484]
[1736153926512,0.06468155,99076.0,99075.0,0.050484]
[1736153927020,0.06268155,99076.0,99075.0,0.050484]
[1736153927217,0.06568155,99076.0,99071.0,0.33750546]
[1736153927923,0.06568155,99076.0,99071.0,0.35333799]
[1736153928820,0.2412656,99075.0,99072.0,0.050486]
[1736153929020,0.2412656,99075.0,99074.0,0.050484]
[1736153929923,0.06168155,99075.0,99074.0,0.050484]
[1736153930623,0.06368155,99075.0,99074.0,0.050484]
[1736153930847,0.06468155,99075.0,99074.0,0.050484]
[1736153931126,0.06368155,99075.0,99074.0,0.050484]
[1736153933126,0.06468155,99075.0,99074.0,0.050484]
[1736153936338,0.06468155,99075.0,99074.0,0.06626681]
[1736153937434,0.08019394,99075.0,99074.0,0.06626681]
[1736153938535,0.08019394,99075.0,99074.0,0.050484]
[1736153943330,0.80179394,99075.0,99074.0,0.050484]
[1736153944236,0.78628155,99075.0,99074.0,0.050484]
[1736153945741,0.42548155,99075.0,99074.0,0.050484]
[1736153949240,0.06468155,99075.0,99074.0,0.050484]
[1736153949440,0.42548155,99075.0,99074.0,0.050484]
[1736153950843,0.6050656,99075.0,99074.0,0.050484]
[1736153953438,0.42548155,99075.0,99051.0,0.00052]
[1736153953643,0.3608,99064.0,99063.0,0.05049]
[1736153953843,0.3608,99064.0,99058.0,0.01578313]
[1736153954043,0.3608,99061.0,99060.0,0.050492]
[1736153954252,0.411291,99061.0,99060.0,0.050492]
[1736153954655,0.411291,99061.0,99060.0,0.42627513]
[1736153954955,0.47297255,99061.0,99060.0,0.42627513]
[1736153957546,0.47297255,99061.0,99060.0,0.37778313]
[1736153958346,0.47297255,99061.0,99060.0,0.01778313]
[1736153962160,0.47297255,99061.0,99060.0,0.06827513]
[1736153963160,0.42248155,99061.0,99060.0,0.06827513]
[1736153963864,0.06168155,99061.0,99060.0,0.06827513]
[1736153964062,0.3608,99080.0,99060.0,0.73852129]
[1736153964365,0.3608,99088.0,99080.0,0.050481]
[1736153964867,0.3608,99088.0,99087.0,0.050478]
[1736153966970,0.3608,99088.0,99087.0,0.051478]
[1736153967362,0.411277,99088.0,99087.0,0.001]
[1736153967568,0.050485,99075.0,99074.0,0.050484]
[1736153967871,0.411285,99075.0,99074.0,0.050484]
[1736153969172,0.413285,99075.0,99074.0,0.050484]
[1736153969364,0.414285,99075.0,99074.0,0.050484]
[1736153972869,0.414285,99075.0,99061.0,0.050491]
[1736153973073,0.3608,99064.0,99063.0,0.05049]
[1736153973377,0.36504001,99075.0,99074.0,0.050484]
[1736153973577,0.3638,99075.0,99074.0,0.050484]
[1736153974178,0.3608,99075.0,99074.0,0.050484]
[1736153974980,0.3628,99075.0,99074.0,0.050484]
[1736153975986,0.3638,99075.0,99074.0,0.050484]
[1736153979884,0.3638,99075.0,99074.0,0.410484]
[1736153982979,0.3638,99075.0,99074.0,0.4358558]
[1736153992587,0.003,99075.0,99074.0,0.4358558]
[1736153992785,0.3638,99075.0,99074.0,0.4358558]
[1736153994187,0.41289206,99075.0,99074.0,0.4358558]
[1736153999599,0.3638,99075.0,99074.0,0.4358558]
[1736154000291,0.003,99075.0,99074.0,0.4358558]
[1736154003000,0.12280206,99075.0,99074.0,0.4358558]
[1736154003715,0.36196,99086.0,99074.0,0.3853718]
[1736154004009,0.43240001,99095.0,99094.0,0.050474]
[1736154004186,0.4312,99095.0,99094.0,0.050474]
[1736154004392,0.4312,99095.0,99094.0,0.410474]
[1736154004996,0.3608,99095.0,99094.0,0.410474]
[1736154005192,0.3608,99095.0,99094.0,0.43581361]
[1736154005193,0.40988131,99095.0,99094.0,0.43581361]
[1736154006501,0.3608,99095.0,99094.0,0.43581361]
[1736154007804,0.14971178,99097.0,99096.0,0.050473]
[1736154008614,0.14971178,99103.0,99096.0,0.050473]
[1736154008794,0.14971178,99103.0,99102.0,0.05047]
[1736154009801,0.51051178,99106.0,99105.0,0.050469]
[1736154011003,0.3608,99106.0,99105.0,0.050469]
[1736154011499,0.3628,99106.0,99105.0,0.050469]
[1736154012099,0.3668,99106.0,99105.0,0.050469]
[1736154012397,0.3668,99106.0,99092.0,0.49804]
[1736154012597,0.3608,99096.0,99095.0,0.050474]
[1736154015099,0.3608,99096.0,99095.0,0.051474]
[1736154015307,0.3608,99096.0,99095.0,0.412474]
[1736154015600,0.772073,99096.0,99095.0,0.002]
[1736154017200,0.772073,99096.0,99095.0,0.001]
[1736154017510,0.82116093,99096.0,99095.0,0.001]
[1736154017708,0.77068793,99096.0,99092.0,0.050475]
[1736154017905,0.050475,99093.0,99081.0,0.050481]
[1736154018104,0.3608,99082.0,99081.0,0.050481]
[1736154018602,0.3608,99082.0,99071.0,0.050486]
[1736154018603,0.3608,99082.0,99072.0,0.06422678]
[1736154018811,0.3608,99082.0,99081.0,0.050481]
[1736154019608,0.3608,99082.0,99081.0,0.390481]
[1736154020895,0.004,99093.0,99092.0,0.050475]
[1736154021305,0.0753,99109.0,99092.0,0.050475]
[1736154021602,0.0753,99109.0,99085.0,0.411278]
[1736154021603,0.3608,99107.0,99095.0,0.390474]
[1736154021807,0.3608,99107.0,99106.0,0.050468]
[1736154022510,0.3608,99107.0,99106.0,0.390468]
[1736154023607,0.40988207,99107.0,99106.0,0.390468]
[1736154024010,0.46035007,99107.0,99106.0,0.050468]
[1736154024197,0.41088207,99107.0,99106.0,0.050468]
[1736154024518,0.3618,99107.0,99106.0,0.390468]
[1736154024816,0.3638,99107.0,99106.0,0.390468]
[1736154027314,0.003,99107.0,99106.0,0.390468]
[1736154030519,0.14949324,99110.0,99109.0,0.050467]
[1736154030806,0.60113236,99137.0,99119.0,0.050462]
[1736154030807,0.17937652,99120.0,99119.0,0.050462]
[1736154031014,0.17937652,99120.0,99119.0,0.411262]
[1736154031204,0.17937652,99120.0,99119.0,0.751262]
[1736154031906,0.21075462,99134.0,99133.0,0.050454]
[1736154032299,0.00151382,99134.0,99133.0,0.050454]
[1736154033111,0.00151382,99134.0,99133.0,0.391454]
[1736154033614,0.0505869,99134.0,99133.0,0.391454]
[1736154035117,0.00151382,99134.0,99133.0,0.391454]
[1736154036621,0.00151382,99134.0,99133.0,0.051454]
[1736154037613,0.3608,99144.0,99143.0,0.050449]
[1736154038113,0.3608,99144.0,99143.0,0.390449]
[1736154039110,0.0788,99160.0,99143.0,0.390449]
[1736154039309,0.0788,99160.0,99154.0,0.050444]
[1736154041012,0.3638,99155.0,99154.0,0.050444]
[1736154041404,0.3608,99155.0,99154.0,0.050444]
[1736154041610,0.3648,99155.0,99154.0,0.050444]
[1736154051823,0.6948,99155.0,99130.0,0.00052]
[1736154052027,0.3608,99131.0,99130.0,0.050456]
[1736154052214,0.05046,99123.0,99122.0,0.050459]
[1736154052419,0.41126,99123.0,99122.0,0.390459]
[1736154053318,0.41126,99123.0,99122.0,0.34]
[1736154053518,0.050461,99120.0,99117.0,0.050462]
[1736154053920,0.050462,99118.0,99117.0,0.050462]
[1736154054424,0.050462,99118.0,99117.0,0.390462]
[1736154055325,0.050462,99118.0,99117.0,0.391462]
[1736154055524,0.050462,99118.0,99117.0,0.393462]
[1736154056233,0.3608,99123.0,99122.0,0.05046]
[1736154056629,0.3608,99123.0,99117.0,0.343]
[1736154056928,0.050472,99099.0,99098.0,0.050472]
[1736154057331,0.050472,99099.0,99098.0,0.390472]
[1736154058432,0.050472,99099.0,99098.0,0.395472]
[1736154058930,0.051472,99099.0,99098.0,0.395472]
[1736154059428,0.001,99099.0,99098.0,0.395472]
[1736154060319,0.051472,99099.0,99098.0,0.395472]
[1736154061725,0.001,99099.0,99098.0,0.395472]
[1736154066519,0.051472,99099.0,99098.0,0.345]
[1736154067533,0.001,99099.0,99098.0,0.395472]
[1736154068729,0.051472,99099.0,99098.0,0.005]
[1736154068931,0.001,99099.0,99085.0,0.050479]
[1736154069132,0.411278,99086.0,99085.0,0.050479]
[1736154069337,0.411278,99086.0,99085.0,0.390479]
[1736154069541,0.411278,99086.0,99085.0,0.050479]
[1736154070440,0.411278,99086.0,99085.0,0.051479]
[1736154070640,0.3608,99086.0,99085.0,0.051479]
[1736154071029,0.001,99086.0,99085.0,0.050479]
[1736154071436,0.001,99086.0,99085.0,0.390479]
[1736154071927,0.412278,99086.0,99085.0,0.390479]
[1736154075137,0.050483,99078.0,99068.0,0.050487]
[1736154075336,0.3608,99069.0,99068.0,0.050487]
[1736154075831,0.3608,99069.0,99068.0,0.390487]
[1736154076742,0.050488,99068.0,99067.0,0.00052]
[1736154076932,0.050488,99067.0,99066.0,0.050488]
[1736154078231,0.1489,99067.0,99052.0,0.34]
[1736154078428,0.3608,99054.0,99053.0,0.050495]
[1736154079037,0.3608,99054.0,99053.0,0.06627952]
[1736154080237,0.3618,99054.0,99053.0,0.06627952]
[1736154080530,0.001,99054.0,99053.0,0.06627952]
[1736154080729,0.001,99054.0,99053.0,0.050495]
[1736154081041,0.001,99054.0,99053.0,0.055495]
[1736154081543,0.001,99054.0,99053.0,0.395495]
[1736154083035,0.3608,99069.0,99068.0,0.050488]
[1736154083537,9.9e-07,99072.0,99068.0,0.050488]
[1736154083737,9.9e-07,99072.0,99071.0,0.411286]
[1736154083937,0.51084276,99079.0,99071.0,0.736586]
[1736154084139,0.51084276,99079.0,99078.0,0.050482]
[1736154084140,0.50996275,99079.0,99078.0,0.050482]
[1736154084346,0.14916275,99079.0,99078.0,0.390482]
[1736154084548,0.17890059,99086.0,99078.0,0.390482]
[1736154084746,0.4331,99097.0,99096.0,0.050473]
[1736154085549,0.3608,99097.0,99096.0,0.050473]
[1736154086350,0.3608,99097.0,99089.0,0.050477]
[1736154087443,0.3608,99097.0,99096.0,0.050473]
[1736154088841,0.3608,99097.0,99096.0,0.390473]
[1736154090045,0.3608,99097.0,99096.0,0.392473]
[1736154090642,0.3608,99097.0,99096.0,0.390473]
[1736154090843,0.3608,99097.0,99096.0,0.392473]
[1736154091052,0.3618,99097.0,99096.0,0.392473]
[1736154095042,0.3618,99097.0,99096.0,0.41198622]
[1736154095240,0.33423409,99097.0,99096.0,0.41198622]
[1736154096158,0.001,99097.0,99096.0,0.77278622]
[1736154112057,0.001,99097.0,99096.0,1.27018622]
[1736154115856,0.001,99097.0,99096.0,1.52041908]
[1736154119563,0.001,99097.0,99096.0,1.15961908]
[1736154119769,0.001,99097.0,99096.0,1.52041908]
[1736154120561,0.001,99097.0,99096.0,1.15961908]
[1736154120757,0.001,99097.0,99096.0,1.52041908]
[1736154121164,0.0663,99115.0,99114.0,0.050464]
[1736154121864,0.0663,99115.0,99114.0,0.390464]
[1736154122167,0.14980258,99123.0,99122.0,0.05046]
[1736154122867,0.0765,99125.0,99124.0,0.050459]
[1736154123568,0.0765,99125.0,99124.0,0.390459]
[1736154124669,0.0785,99125.0,99124.0,0.57196307]
[1736154125562,0.0825,99125.0,99124.0,0.57196307]
[1736154126269,0.0825,99125.0,99124.0,0.390459]
[1736154126455,0.0825,99125.0,99124.0,0.41016629]
[1736154129174,0.0825,99125.0,99124.0,0.59146297]
[1736154132065,0.0825,99125.0,99124.0,0.41016629]
[1736154135569,0.0825,99125.0,99124.0,0.59146297]
[1736154137474,0.0825,99125.0,99124.0,0.41016629]
[1736154138873,0.0825,99125.0,99124.0,0.59146297]
[1736154140276,0.0825,99125.0,99124.0,0.41016629]
[1736154142873,0.006,99125.0,99124.0,0.41016629]
[1736154148785,0.006,99125.0,99124.0,0.77096629]
[1736154151779,0.006,99125.0,99124.0,1.32384955]
[1736154152185,0.12000536,99136.0,99124.0,1.32384955]
[1736154152384,0.12000536,99136.0,99135.0,0.050453]
[1736154152783,3.6e-07,99136.0,99135.0,0.751253]
[1736154152983,0.1500067,99142.0,99141.0,0.05045]
[1736154153782,0.1500067,99142.0,99141.0,0.39045]
[1736154154294,0.1500067,99142.0,99141.0,0.39145]
[1736154154996,0.0726,99157.0,99156.0,0.050443]
[1736154155594,0.0726,99157.0,99156.0,0.390443]
[1736154156389,0.0766,99157.0,99156.0,0.390443]
[1736154156791,0.0786,99157.0,99156.0,0.390443]
[1736154158189,0.006,99157.0,99156.0,0.390443]
[1736154158586,0.006,99157.0,99156.0,0.40624098]
[1736154159093,0.08996179,99166.0,99156.0,0.40624098]
[1736154159297,0.08996179,99166.0,99165.0,0.050438]
[1736154160392,0.08996179,99166.0,99165.0,0.390438]
[1736154160584,0.43320001,99177.0,99165.0,0.390438]
[1736154160788,0.4324,99177.0,99176.0,0.050433]
[1736154161488,0.4324,99177.0,99176.0,0.390433]
[1736154162497,0.4364,99177.0,99176.0,0.390433]
[1736154162899,0.08996179,99182.0,99176.0,0.390433]
[1736154163100,0.1500067,99192.0,99191.0,0.050425]
[1736154163794,0.2219067,99199.0,99198.0,0.050421]
[1736154165602,0.0719,99199.0,99198.0,0.050421]
[1736154165789,0.0719,99199.0,99198.0,0.051421]
[1736154166193,0.0719,99199.0,99198.0,0.414221]
[1736154168203,0.1,99200.0,99199.0,0.050421]
[1736154169410,0.1,99200.0,99199.0,0.053421]
[1736154172296,0.1,99200.0,99198.0,0.3608]
[1736154172490,0.1,99200.0,99189.0,0.00052]
[1736154172491,0.5048,99199.0,99179.0,0.36231212]
[1736154172699,0.3608,99191.0,99183.0,0.01595155]
[1736154172897,0.050426,99189.0,99183.0,0.01595155]
[1736154173390,0.3608,99191.0,99183.0,0.06638055]
[1736154173599,0.050427,99188.0,99184.0,0.050428]
[1736154173797,0.050427,99188.0,99180.0,0.09765161]
[1736154174002,0.050428,99185.0,99180.0,0.05043]
[1736154174306,0.3608,99191.0,99179.0,0.00151212]
[1736154174500,0.05043,99182.0,99181.0,0.05043]
[1736154176303,0.05043,99182.0,99181.0,0.05643]
[1736154179105,0.3608,99183.0,99181.0,0.006]
[1736154179299,0.3608,99183.0,99182.0,0.05043]
[1736154179703,0.3608,99183.0,99182.0,0.39043]
[1736154180306,0.071,99190.0,99182.0,0.39043]
[1736154180607,0.071,99190.0,99188.0,0.050426]
[1736154181395,0.071,99190.0,99189.0,0.050426]
[1736154183008,0.121425,99190.0,99189.0,0.051426]
[1736154184609,0.121425,99190.0,99189.0,0.054426]
[1736154184800,0.121425,99190.0,99189.0,0.056426]
[1736154185002,0.121425,99190.0,99189.0,0.052426]
[1736154185202,0.121425,99190.0,99189.0,0.057426]
[1736154185404,0.071,99190.0,99189.0,0.057426]
[1736154185607,0.071,99190.0,99189.0,0.052426]
[1736154185797,0.3608,99191.0,99189.0,0.005]
[1736154186001,0.3608,99191.0,99190.0,0.050425]
[1736154188303,0.1,99200.0,99199.0,0.050421]
[1736154190113,0.1,99200.0,99199.0,0.390421]
[1736154190508,0.1,99200.0,99199.0,0.391421]
[1736154191112,0.1,99200.0,99199.0,0.392421]
[1736154191929,0.1,99200.0,99199.0,0.393421]
[1736154192712,0.1,99200.0,99199.0,0.053421]
[1736154199106,0.4608,99200.0,99199.0,0.053421]
[1736154199311,0.4608,99200.0,99185.0,0.050428]
[1736154199312,0.050424,99193.0,99185.0,0.050428]
[1736154199521,0.050428,99185.0,99179.0,0.00151225]
[1736154199822,0.3608,99182.0,99179.0,0.00151225]
[1736154200118,0.3608,99182.0,99181.0,0.23166817]
[1736154200525,0.3608,99182.0,99181.0,0.05043]
[1736154200829,0.3608,99182.0,99181.0,0.05343]
[1736154201324,0.3608,99182.0,99181.0,0.05543]
[1736154202520,0.0742,99192.0,99189.0,0.050426]
[1736154202521,0.3608,99190.0,99189.0,0.050426]
[1736154202720,0.0716,99199.0,99182.0,0.05043]
[1736154202721,0.050422,99197.0,99182.0,0.05043]
[1736154202909,0.050422,99197.0,99196.0,0.050422]
[1736154203108,0.050422,99197.0,99196.0,0.390422]
[1736154203315,0.0716,99199.0,99198.0,0.050421]
[1736154203824,0.22149218,99199.0,99198.0,0.050421]
[1736154204923,0.22449218,99199.0,99198.0,0.050421]
[1736154205323,0.0756,99199.0,99198.0,0.050421]
[1736154205518,0.0746,99199.0,99198.0,0.050421]
[1736154206025,0.0746,99199.0,99198.0,0.051421]
[1736154206026,0.0736,99199.0,99198.0,0.051421]
[1736154206718,0.124021,99199.0,99198.0,0.051421]
[1736154207620,0.27391318,99199.0,99198.0,0.051421]
[1736154207819,0.27191318,99199.0,99198.0,0.053421]
[1736154208226,0.27191318,99199.0,99198.0,0.052421]
[1736154208425,0.27191318,99199.0,99198.0,0.050421]
[1736154209126,0.35092963,99199.0,99198.0,0.050421]
[1736154209625,0.30050863,99199.0,99187.0,0.050427]
[1736154209818,0.3608,99192.0,99191.0,0.050425]
[1736154211018,0.411224,99192.0,99191.0,0.050425]
[1736154211221,0.411224,99192.0,99179.0,0.05194325]
[1736154211222,0.050431,99180.0,99179.0,0.00151225]
[1736154211424,0.411231,99180.0,99179.0,0.00151225]
[1736154212418,0.412231,99180.0,99179.0,0.00151225]
[1736154212823,0.415231,99180.0,99179.0,0.00151225]
[1736154213723,0.414231,99180.0,99179.0,0.00351225]
[1736154215729,0.411231,99180.0,99179.0,0.00851225]
[1736154216821,0.5311214,99180.0,99179.0,0.00851225]
[1736154218232,0.411231,99180.0,99179.0,0.00851225]
[1736154218522,0.411231,99180.0,99179.0,0.05894325]
[1736154225136,0.5311497,99180.0,99179.0,0.05894325]
[1736154227826,0.411231,99180.0,99179.0,0.05894325]
[1736154233538,0.050431,99180.0,99179.0,0.05894325]
[1736154239143,0.050431,99180.0,99179.0,0.057431]
[1736154239831,0.15002705,99183.0,99182.0,0.05043]
[1736154240238,0.17987062,99190.0,99189.0,0.050426]
[1736154240440,0.17987062,99191.0,99188.0,0.3608]
[1736154240641,0.17987062,99191.0,99190.0,0.050425]
[1736154240853,0.06627062,99191.0,99190.0,0.050425]
[1736154242241,0.10151262,99200.0,99190.0,0.32452159]
[1736154242443,0.10151262,99200.0,99199.0,0.050421]
[1736154242643,0.1,99200.0,99199.0,0.050421]
[1736154243740,0.102,99200.0,99199.0,0.050421]
[1736154244536,0.105,99200.0,99199.0,0.050421]
[1736154245833,0.105,99200.0,99197.0,0.1811423]
[1736154246035,0.050421,99198.0,99197.0,0.1811423]
[1736154246541,0.3608,99198.0,99196.0,0.1811423]
[1736154246750,0.050422,99197.0,99196.0,0.1811423]
[1736154247842,0.3608,99198.0,99197.0,0.050422]
[1736154248249,0.105,99200.0,99199.0,0.050421]
[1736154248250,0.1,99200.0,99199.0,0.050421]
[1736154248839,0.1,99200.0,99199.0,0.390421]
[1736154250645,0.050423,99195.0,99194.0,0.1811423]
[1736154250844,0.050423,99195.0,99193.0,0.01377982]
[1736154250845,0.050425,99190.0,99189.0,0.24152307]
[1736154252051,0.050428,99185.0,99181.0,0.05043]
[1736154252253,0.3608,99182.0,99181.0,0.05043]
[1736154253749,0.11986687,99183.0,99180.0,0.050431]
[1736154253947,0.11986687,99183.0,99182.0,0.05043]